[Event "Titled Tuesday Blitz December 7 2021"]
[White "Manafov, Vugar"]
[Black "Ianov, Viktor"]
[WhiteFideId "13410814"]
[BlackFideId "14102730"]
[WhiteElo "2277"]
[BlackElo "2307"]
[Result "1-0"]
[Round "02"]
[TimeControl "180+1"]
[Date "2021.12.07"]
[WhiteClock "0:01:19"]
[BlackClock "0:01:54"]

1. d4 {[%clk 0:03:00]}  d6 {[%clk 0:02:58]} 2. c4 {[%clk 0:03:00]}  g6 {[%clk 0:02:58]} 3. Nf3 {[%clk 0:03:00]}  Bg7 {[%clk 0:02:58]} 4. g3 {[%clk 0:03:01]}  Nf6 {[%clk 0:02:57]} 5. Bg2 {[%clk 0:03:01]}  O-O {[%clk 0:02:57]} 6. O-O {[%clk 0:03:01]}  c6 {[%clk 0:02:58]} 7. Nc3 {[%clk 0:03:01]}  Bf5 {[%clk 0:02:58]} 8. Nh4 {[%clk 0:03:01]}  Be6 {[%clk 0:02:57]} 9. d5 {[%clk 0:03:02]}  cxd5 {[%clk 0:02:57]} 10. cxd5 {[%clk 0:03:02]}  Bd7 {[%clk 0:02:58]} 11. Be3 {[%clk 0:03:03]}  Na6 {[%clk 0:02:58]} 12. Bd4 {[%clk 0:03:03]}  Qa5 {[%clk 0:02:57]} 13. Re1 {[%clk 0:03:02]}  Rfc8 {[%clk 0:02:57]} 14. e4 {[%clk 0:03:01]}  Nc5 {[%clk 0:02:56]} 15. a3 {[%clk 0:02:38]}  Qd8 {[%clk 0:02:52]} 16. b4 {[%clk 0:02:35]}  Na6 {[%clk 0:02:52]} 17. Rc1 {[%clk 0:02:35]}  Nc7 {[%clk 0:02:51]} 18. Qd3 {[%clk 0:02:33]}  a6 {[%clk 0:02:50]} 19. a4 {[%clk 0:02:27]}  b5 {[%clk 0:02:43]} 20. a5 {[%clk 0:02:25]}  Rab8 {[%clk 0:02:40]} 21. f4 {[%clk 0:02:17]}  Ng4 {[%clk 0:02:36]} 22. Bxg7 {[%clk 0:02:12]}  Kxg7 {[%clk 0:02:35]} 23. h3 {[%clk 0:01:57]}  Nf6 {[%clk 0:02:27]} 24. e5 {[%clk 0:01:57]}  Nfe8 {[%clk 0:02:24]} 25. Ne4 {[%clk 0:01:38]}  Kg8 {[%clk 0:02:19]} 26. Ng5 {[%clk 0:01:35]}  Ng7 {[%clk 0:02:17]} 27. e6 {[%clk 0:01:29]}  fxe6 {[%clk 0:02:13]} 28. Nxg6 {[%clk 0:01:17]}  hxg6 {[%clk 0:02:00]} 29. Qxg6 {[%clk 0:01:18]}  Qe8 {[%clk 0:01:55]} 30. Qh7+ {[%clk 0:01:18]}  Kf8 {[%clk 0:01:54]} 31. Qh8# {[%clk 0:01:19]} 1-0


[Site "https://www.chess.com"]

[Event "Titled Tuesday Blitz December 7 2021"]
[White "Matinian, Nikita"]
[Black "Fromm, Marius"]
[WhiteFideId "24129100"]
[BlackFideId "12993190"]
[WhiteElo "2422"]
[BlackElo "2515"]
[Result "1-0"]
[Round "02"]
[TimeControl "180+1"]
[Date "2021.12.07"]
[WhiteClock "0:00:25"]
[BlackClock "0:00:01"]

1. e4 {[%clk 0:03:00]}  c5 {[%clk 0:02:59]} 2. Nf3 {[%clk 0:03:00]}  d6 {[%clk 0:03:00]} 3. d4 {[%clk 0:03:00]}  cxd4 {[%clk 0:03:01]} 4. Nxd4 {[%clk 0:03:01]}  Nf6 {[%clk 0:03:01]} 5. Nc3 {[%clk 0:03:01]}  a6 {[%clk 0:03:01]} 6. h3 {[%clk 0:03:02]}  e5 {[%clk 0:03:00]} 7. Nde2 {[%clk 0:02:59]}  h5 {[%clk 0:02:58]} 8. Nd5 {[%clk 0:02:56]}  Nxd5 {[%clk 0:02:40]} 9. Qxd5 {[%clk 0:02:57]}  Nc6 {[%clk 0:02:40]} 10. Be3 {[%clk 0:02:54]}  Be6 {[%clk 0:02:39]} 11. Qd2 {[%clk 0:02:54]}  d5 {[%clk 0:02:20]} 12. exd5 {[%clk 0:02:55]}  Qxd5 {[%clk 0:02:20]} 13. Qxd5 {[%clk 0:02:55]}  Bxd5 {[%clk 0:02:20]} 14. Nc3 {[%clk 0:02:54]}  Be6 {[%clk 0:02:21]} 15. O-O-O {[%clk 0:02:55]}  Be7 {[%clk 0:01:59]} 16. Nd5 {[%clk 0:02:53]}  Bd8 {[%clk 0:01:59]} 17. c3 {[%clk 0:02:48]}  O-O {[%clk 0:01:54]} 18. Be2 {[%clk 0:02:48]}  h4 {[%clk 0:01:50]} 19. Bc5 {[%clk 0:02:38]}  Re8 {[%clk 0:01:46]} 20. Rhe1 {[%clk 0:02:30]}  Rc8 {[%clk 0:01:45]} 21. Nb6 {[%clk 0:02:29]}  Bg5+ {[%clk 0:01:37]} 22. Be3 {[%clk 0:02:11]}  Bxe3+ {[%clk 0:01:37]} 23. fxe3 {[%clk 0:02:12]}  Rcd8 {[%clk 0:01:38]} 24. b3 {[%clk 0:01:58]}  e4 {[%clk 0:01:13]} 25. Na4 {[%clk 0:01:31]}  Ne5 {[%clk 0:01:06]} 26. Nc5 {[%clk 0:01:31]}  Bc8 {[%clk 0:01:07]} 27. Nxe4 {[%clk 0:01:24]}  Rxd1+ {[%clk 0:01:01]} 28. Rxd1 {[%clk 0:01:25]}  Bd7 {[%clk 0:00:33]} 29. Nd6 {[%clk 0:01:17]}  Rb8 {[%clk 0:00:33]} 30. e4 {[%clk 0:01:10]}  f6 {[%clk 0:00:31]} 31. a4 {[%clk 0:01:08]}  Bc6 {[%clk 0:00:30]} 32. a5 {[%clk 0:01:07]}  Rd8 {[%clk 0:00:24]} 33. b4 {[%clk 0:01:06]}  Kf8 {[%clk 0:00:20]} 34. c4 {[%clk 0:01:06]}  Nf7 {[%clk 0:00:11]} 35. Nxf7 {[%clk 0:01:02]}  Rxd1+ {[%clk 0:00:12]} 36. Kxd1 {[%clk 0:01:01]}  Kxf7 {[%clk 0:00:13]} 37. Bd3 {[%clk 0:00:29]}  Ke6 {[%clk 0:00:13]} 38. Ke2 {[%clk 0:00:28]}  Ke5 {[%clk 0:00:12]} 39. Ke3 {[%clk 0:00:28]}  g5 {[%clk 0:00:09]} 40. b5 {[%clk 0:00:28]}  axb5 {[%clk 0:00:09]} 41. cxb5 {[%clk 0:00:29]}  Bd7 {[%clk 0:00:09]} 42. a6 {[%clk 0:00:27]}  bxa6 {[%clk 0:00:10]} 43. bxa6 {[%clk 0:00:28]}  Bc6 {[%clk 0:00:10]} 44. a7 {[%clk 0:00:28]}  Ba8 {[%clk 0:00:03]} 45. Bc4 {[%clk 0:00:25]}  Bxe4 {[%clk 0:00:03]} 46. Be2 {[%clk 0:00:26]}  Bb7 {[%clk 0:00:01]} 47. Bf3 {[%clk 0:00:25]} 1-0


[Site "https://www.chess.com"]

[Event "Titled Tuesday Blitz December 7 2021"]
[White "Matveeva, Olga"]
[Black "Aradhya, Garg"]
[WhiteFideId "24107018"]
[BlackFideId "25006746"]
[WhiteElo "2083"]
[BlackElo "2176"]
[Result "0-1"]
[Round "02"]
[TimeControl "180+1"]
[Date "2021.12.07"]
[WhiteClock "0:00:11"]
[BlackClock "0:00:19"]

1. d4 {[%clk 0:03:00]}  d5 {[%clk 0:03:00]} 2. c4 {[%clk 0:03:00]}  c6 {[%clk 0:03:00]} 3. Nf3 {[%clk 0:03:00]}  Nf6 {[%clk 0:03:00]} 4. e3 {[%clk 0:03:00]}  Bf5 {[%clk 0:02:59]} 5. Nc3 {[%clk 0:03:00]}  e6 {[%clk 0:03:00]} 6. Nh4 {[%clk 0:02:59]}  h5 {[%clk 0:03:00]} 7. Nxf5 {[%clk 0:02:53]}  exf5 {[%clk 0:03:00]} 8. Bd2 {[%clk 0:02:45]}  Qd7 {[%clk 0:02:56]} 9. Bd3 {[%clk 0:02:39]}  Be7 {[%clk 0:02:55]} 10. Qc2 {[%clk 0:02:35]}  g6 {[%clk 0:02:54]} 11. cxd5 {[%clk 0:02:29]}  cxd5 {[%clk 0:02:54]} 12. f3 {[%clk 0:02:11]}  Nc6 {[%clk 0:02:54]} 13. a3 {[%clk 0:02:06]}  O-O {[%clk 0:02:52]} 14. O-O {[%clk 0:02:02]}  Rac8 {[%clk 0:02:46]} 15. Rac1 {[%clk 0:02:01]}  Rfe8 {[%clk 0:02:41]} 16. Qa4 {[%clk 0:01:55]}  Bf8 {[%clk 0:02:36]} 17. b4 {[%clk 0:01:47]}  Bh6 {[%clk 0:02:35]} 18. Rfe1 {[%clk 0:01:47]}  Nxd4 {[%clk 0:01:51]} 19. Qxd7 {[%clk 0:01:46]}  Nxd7 {[%clk 0:01:52]} 20. Nxd5 {[%clk 0:01:40]}  Rxc1 {[%clk 0:01:51]} 21. Bxc1 {[%clk 0:01:35]}  Re5 {[%clk 0:01:37]} 22. Bb2 {[%clk 0:01:19]}  Rxd5 {[%clk 0:01:37]} 23. Bxd4 {[%clk 0:01:19]}  Bxe3+ {[%clk 0:01:35]} 24. Bxe3 {[%clk 0:01:09]}  Rxd3 {[%clk 0:01:35]} 25. Bxa7 {[%clk 0:01:08]}  Rxa3 {[%clk 0:01:35]} 26. Bd4 {[%clk 0:01:08]}  Kf8 {[%clk 0:01:30]} 27. Rc1 {[%clk 0:01:01]}  Rd3 {[%clk 0:01:06]} 28. Ba7 {[%clk 0:00:48]}  Rd5 {[%clk 0:00:50]} 29. Kf2 {[%clk 0:00:46]}  Ke7 {[%clk 0:00:49]} 30. Rc7 {[%clk 0:00:42]}  Rb5 {[%clk 0:00:49]} 31. Rc4 {[%clk 0:00:37]}  Ne5 {[%clk 0:00:49]} 32. Bc5+ {[%clk 0:00:34]}  Rxc5 {[%clk 0:00:40]} 33. Rxc5 {[%clk 0:00:31]}  Nd3+ {[%clk 0:00:40]} 34. Ke3 {[%clk 0:00:31]}  Nxc5 {[%clk 0:00:40]} 35. bxc5 {[%clk 0:00:32]}  Ke6 {[%clk 0:00:38]} 36. Kd4 {[%clk 0:00:32]}  f4 {[%clk 0:00:38]} 37. Ke4 {[%clk 0:00:27]}  g5 {[%clk 0:00:37]} 38. h3 {[%clk 0:00:22]}  f6 {[%clk 0:00:23]} 39. Kd4 {[%clk 0:00:21]}  Kd7 {[%clk 0:00:23]} 40. Kd5 {[%clk 0:00:21]}  Ke7 {[%clk 0:00:23]} 41. Kd4 {[%clk 0:00:19]}  Ke6 {[%clk 0:00:20]} 42. Ke4 {[%clk 0:00:18]}  h4 {[%clk 0:00:19]} 43. Kd4 {[%clk 0:00:18]}  f5 {[%clk 0:00:20]} 44. Kc4 {[%clk 0:00:17]}  Ke5 {[%clk 0:00:20]} 45. Kb5 {[%clk 0:00:12]}  Kd4 {[%clk 0:00:20]} 46. Kb6 {[%clk 0:00:10]}  Kc4 {[%clk 0:00:19]} 47. c6 {[%clk 0:00:10]}  bxc6 {[%clk 0:00:19]} 48. Kxc6 {[%clk 0:00:11]}  Kd4 {[%clk 0:00:19]} 49. Kd6 {[%clk 0:00:11]}  Ke3 {[%clk 0:00:19]} 50. Ke5 {[%clk 0:00:11]}  Kf2 {[%clk 0:00:19]} 51. Kxf5 {[%clk 0:00:11]}  Kxg2 {[%clk 0:00:19]} 52. Kxg5 {[%clk 0:00:11]}  Kg3 {[%clk 0:00:19]} 0-1


[Site "https://www.chess.com"]

[Event "Titled Tuesday Blitz December 7 2021"]
[White "Mezentsev, Ivan"]
[Black "Belyakov, Bogdan"]
[WhiteFideId "13706195"]
[BlackFideId "24104795"]
[WhiteElo "2295"]
[BlackElo "2407"]
[Result "1-0"]
[Round "02"]
[TimeControl "180+1"]
[Date "2021.12.07"]
[WhiteClock "0:00:13"]
[BlackClock "0:00:04"]

1. d4 {[%clk 0:03:00]}  Nf6 {[%clk 0:02:58]} 2. Nf3 {[%clk 0:03:01]}  g6 {[%clk 0:02:58]} 3. Bf4 {[%clk 0:03:00]}  Bg7 {[%clk 0:02:55]} 4. e3 {[%clk 0:03:01]}  c5 {[%clk 0:02:52]} 5. c3 {[%clk 0:02:58]}  cxd4 {[%clk 0:02:49]} 6. exd4 {[%clk 0:02:58]}  d5 {[%clk 0:02:39]} 7. Be2 {[%clk 0:02:56]}  Bg4 {[%clk 0:02:37]} 8. Nbd2 {[%clk 0:02:52]}  O-O {[%clk 0:02:36]} 9. O-O {[%clk 0:02:52]}  Nc6 {[%clk 0:02:36]} 10. h3 {[%clk 0:02:51]}  Bxf3 {[%clk 0:02:36]} 11. Nxf3 {[%clk 0:02:50]}  Ne4 {[%clk 0:02:30]} 12. Bd3 {[%clk 0:02:44]}  Nd6 {[%clk 0:02:28]} 13. Re1 {[%clk 0:02:42]}  e6 {[%clk 0:02:28]} 14. h4 {[%clk 0:02:36]}  Na5 {[%clk 0:02:20]} 15. h5 {[%clk 0:02:34]}  Nac4 {[%clk 0:02:20]} 16. Rb1 {[%clk 0:02:32]}  b5 {[%clk 0:02:16]} 17. hxg6 {[%clk 0:02:29]}  hxg6 {[%clk 0:02:16]} 18. Ng5 {[%clk 0:02:24]}  Bf6 {[%clk 0:02:06]} 19. Qg4 {[%clk 0:02:23]}  Nf5 {[%clk 0:02:00]} 20. Nxe6 {[%clk 0:01:16]}  fxe6 {[%clk 0:02:00]} 21. Qxg6+ {[%clk 0:01:16]}  Ng7 {[%clk 0:01:35]} 22. Rxe6 {[%clk 0:01:10]}  Bxd4 {[%clk 0:01:12]} 23. Qh7+ {[%clk 0:00:52]}  Kf7 {[%clk 0:01:10]} 24. Qg6+ {[%clk 0:00:37]}  Kg8 {[%clk 0:01:10]} 25. Bg5 {[%clk 0:00:36]}  Bxf2+ {[%clk 0:01:06]} 26. Kh1 {[%clk 0:00:35]}  Qd7 {[%clk 0:00:23]} 27. Re7 {[%clk 0:00:32]}  Qxe7 {[%clk 0:00:21]} 28. Bxe7 {[%clk 0:00:31]}  Ne5 {[%clk 0:00:14]} 29. Qh7+ {[%clk 0:00:27]}  Kf7 {[%clk 0:00:14]} 30. Bxf8 {[%clk 0:00:27]}  Rxf8 {[%clk 0:00:13]} 31. Bf5 {[%clk 0:00:16]}  Kf6 {[%clk 0:00:12]} 32. Bh3 {[%clk 0:00:15]}  Nf7 {[%clk 0:00:03]} 33. Rf1 {[%clk 0:00:14]}  Rh8 {[%clk 0:00:04]} 34. Rxf2+ {[%clk 0:00:13]} 1-0


[Site "https://www.chess.com"]

[Event "Titled Tuesday Blitz December 7 2021"]
[White "Obolentseva, Alexandra"]
[Black "Vakhlamov, Igor L."]
[WhiteFideId "24153648"]
[BlackFideId "24126748"]
[WhiteElo "2113"]
[BlackElo "2416"]
[Result "0-1"]
[Round "02"]
[TimeControl "180+1"]
[Date "2021.12.07"]
[WhiteClock "0:00:27"]
[BlackClock "0:00:41"]

1. d4 {[%clk 0:03:00]}  d5 {[%clk 0:02:59]} 2. c4 {[%clk 0:03:00]}  c6 {[%clk 0:03:00]} 3. Nf3 {[%clk 0:03:00]}  Nf6 {[%clk 0:03:00]} 4. Nc3 {[%clk 0:03:00]}  a6 {[%clk 0:03:00]} 5. b3 {[%clk 0:02:55]}  g6 {[%clk 0:02:57]} 6. Bb2 {[%clk 0:02:53]}  Bg7 {[%clk 0:02:57]} 7. e3 {[%clk 0:02:52]}  Bf5 {[%clk 0:02:54]} 8. Be2 {[%clk 0:02:52]}  O-O {[%clk 0:02:53]} 9. O-O {[%clk 0:02:52]}  Ne4 {[%clk 0:02:54]} 10. Nxe4 {[%clk 0:02:51]}  Bxe4 {[%clk 0:02:55]} 11. Nd2 {[%clk 0:02:52]}  Bf5 {[%clk 0:02:54]} 12. Bf3 {[%clk 0:02:51]}  a5 {[%clk 0:02:50]} 13. Qe2 {[%clk 0:02:50]}  Na6 {[%clk 0:02:49]} 14. a3 {[%clk 0:02:44]}  Re8 {[%clk 0:02:49]} 15. Bc3 {[%clk 0:02:44]}  Nc7 {[%clk 0:02:45]} 16. Rfd1 {[%clk 0:02:39]}  h5 {[%clk 0:02:43]} 17. e4 {[%clk 0:02:38]}  dxe4 {[%clk 0:02:43]} 18. Nxe4 {[%clk 0:02:35]}  Bxe4 {[%clk 0:02:43]} 19. Bxe4 {[%clk 0:02:29]}  e6 {[%clk 0:02:43]} 20. Qd2 {[%clk 0:02:24]}  a4 {[%clk 0:02:43]} 21. Rab1 {[%clk 0:02:21]}  Qh4 {[%clk 0:02:31]} 22. Qe3 {[%clk 0:02:16]}  Nd5 {[%clk 0:02:15]} 23. Bxd5 {[%clk 0:02:00]}  exd5 {[%clk 0:02:16]} 24. Qg3 {[%clk 0:01:53]}  Qxg3 {[%clk 0:02:08]} 25. hxg3 {[%clk 0:01:54]}  axb3 {[%clk 0:02:08]} 26. cxd5 {[%clk 0:01:52]}  Rxa3 {[%clk 0:02:01]} 27. dxc6 {[%clk 0:01:48]}  bxc6 {[%clk 0:02:01]} 28. Bb4 {[%clk 0:01:45]}  Ra4 {[%clk 0:02:00]} 29. Rxb3 {[%clk 0:01:45]}  Rb8 {[%clk 0:02:00]} 30. Rdb1 {[%clk 0:01:44]}  Bxd4 {[%clk 0:01:59]} 31. Kf1 {[%clk 0:01:34]}  Ra2 {[%clk 0:01:55]} 32. Be1 {[%clk 0:01:31]}  Rxb3 {[%clk 0:01:55]} 33. Rxb3 {[%clk 0:01:31]}  c5 {[%clk 0:01:55]} 34. Rb1 {[%clk 0:01:27]}  Kg7 {[%clk 0:01:56]} 35. Rc1 {[%clk 0:01:27]}  Kf6 {[%clk 0:01:53]} 36. Rb1 {[%clk 0:01:25]}  Kf5 {[%clk 0:01:49]} 37. Rb7 {[%clk 0:01:25]}  f6 {[%clk 0:01:48]} 38. f3 {[%clk 0:01:26]}  Ra1 {[%clk 0:01:43]} 39. Ke2 {[%clk 0:01:24]}  Ra2+ {[%clk 0:01:43]} 40. Kf1 {[%clk 0:01:24]}  Ke6 {[%clk 0:01:33]} 41. Rb6+ {[%clk 0:01:22]}  Kd5 {[%clk 0:01:33]} 42. Rb8 {[%clk 0:01:22]}  c4 {[%clk 0:01:21]} 43. Rd8+ {[%clk 0:01:22]}  Kc5 {[%clk 0:01:19]} 44. Rc8+ {[%clk 0:01:20]}  Kb5 {[%clk 0:01:19]} 45. Rb8+ {[%clk 0:01:16]}  Bb6 {[%clk 0:01:15]} 46. Bc3 {[%clk 0:01:16]}  Kc6 {[%clk 0:01:09]} 47. Rc8+ {[%clk 0:01:12]}  Kb7 {[%clk 0:01:05]} 48. Rxc4 {[%clk 0:01:12]}  Rf2+ {[%clk 0:01:05]} 49. Ke1 {[%clk 0:01:12]}  Rxg2 {[%clk 0:01:02]} 50. Bxf6 {[%clk 0:00:58]}  Rxg3 {[%clk 0:01:01]} 51. f4 {[%clk 0:00:54]}  Rg4 {[%clk 0:00:51]} 52. Bg5 {[%clk 0:00:43]}  h4 {[%clk 0:00:42]} 53. Rc2 {[%clk 0:00:29]}  h3 {[%clk 0:00:39]} 54. Rh2 {[%clk 0:00:27]}  Rg1+ {[%clk 0:00:39]} 55. Ke2 {[%clk 0:00:27]}  Rg2+ {[%clk 0:00:40]} 56. Rxg2 {[%clk 0:00:27]}  hxg2 {[%clk 0:00:41]} 0-1


[Site "https://www.chess.com"]

[Event "Titled Tuesday Blitz December 7 2021"]
[White "Papasimakopoulos, Alexandros"]
[Black "Gallegos Diaz, Carlos Alberto"]
[WhiteFideId "4244125"]
[BlackFideId "3900886"]
[WhiteElo "2394"]
[BlackElo "2362"]
[Result "1-0"]
[Round "02"]
[TimeControl "180+1"]
[Date "2021.12.07"]
[WhiteClock "0:00:46"]
[BlackClock "0:00:14"]

1. d4 {[%clk 0:03:00]}  Nf6 {[%clk 0:02:46]} 2. c4 {[%clk 0:03:00]}  e5 {[%clk 0:02:44]} 3. dxe5 {[%clk 0:03:00]}  Ng4 {[%clk 0:02:36]} 4. e3 {[%clk 0:02:57]}  Nxe5 {[%clk 0:02:34]} 5. Nh3 {[%clk 0:02:58]}  Bb4+ {[%clk 0:02:29]} 6. Bd2 {[%clk 0:02:57]}  Nbc6 {[%clk 0:02:27]} 7. Nf4 {[%clk 0:02:57]}  O-O {[%clk 0:02:26]} 8. Be2 {[%clk 0:02:53]}  Re8 {[%clk 0:02:24]} 9. O-O {[%clk 0:02:53]}  a5 {[%clk 0:02:22]} 10. Nc3 {[%clk 0:02:51]}  d6 {[%clk 0:02:18]} 11. a3 {[%clk 0:02:48]}  Bxc3 {[%clk 0:02:17]} 12. Bxc3 {[%clk 0:02:46]}  Bf5 {[%clk 0:02:16]} 13. b4 {[%clk 0:02:44]}  axb4 {[%clk 0:02:15]} 14. axb4 {[%clk 0:02:45]}  Qd7 {[%clk 0:01:56]} 15. b5 {[%clk 0:02:41]}  Rxa1 {[%clk 0:01:44]} 16. Qxa1 {[%clk 0:02:40]}  Nb8 {[%clk 0:01:44]} 17. Rd1 {[%clk 0:02:40]}  f6 {[%clk 0:01:35]} 18. c5 {[%clk 0:02:40]}  Qe7 {[%clk 0:01:16]} 19. cxd6 {[%clk 0:02:14]}  cxd6 {[%clk 0:01:17]} 20. Bb4 {[%clk 0:02:12]}  Rd8 {[%clk 0:01:14]} 21. Qa2+ {[%clk 0:02:11]}  Kh8 {[%clk 0:01:04]} 22. Nd5 {[%clk 0:02:11]}  Qf7 {[%clk 0:01:00]} 23. Qa5 {[%clk 0:02:11]}  Rc8 {[%clk 0:00:46]} 24. Bxd6 {[%clk 0:02:02]}  Nbd7 {[%clk 0:00:45]} 25. Nc7 {[%clk 0:01:47]}  Qb3 {[%clk 0:00:39]} 26. Qd2 {[%clk 0:01:37]}  Nc4 {[%clk 0:00:35]} 27. Bxc4 {[%clk 0:01:34]}  Qxc4 {[%clk 0:00:36]} 28. Bg3 {[%clk 0:01:32]}  h5 {[%clk 0:00:33]} 29. h4 {[%clk 0:01:32]}  Rxc7 {[%clk 0:00:29]} 30. Bxc7 {[%clk 0:01:29]}  Qxc7 {[%clk 0:00:29]} 31. Qd5 {[%clk 0:01:24]}  Ne5 {[%clk 0:00:29]} 32. f4 {[%clk 0:01:14]}  Qc3 {[%clk 0:00:22]} 33. fxe5 {[%clk 0:01:03]}  Qxe3+ {[%clk 0:00:22]} 34. Kh1 {[%clk 0:01:03]}  fxe5 {[%clk 0:00:20]} 35. Qf3 {[%clk 0:00:57]}  Qxf3 {[%clk 0:00:18]} 36. gxf3 {[%clk 0:00:57]}  e4 {[%clk 0:00:18]} 37. Rd8+ {[%clk 0:00:52]}  Kh7 {[%clk 0:00:18]} 38. Kg2 {[%clk 0:00:48]}  exf3+ {[%clk 0:00:17]} 39. Kxf3 {[%clk 0:00:49]}  Bg4+ {[%clk 0:00:17]} 40. Kf4 {[%clk 0:00:49]}  Be2 {[%clk 0:00:17]} 41. b6 {[%clk 0:00:49]}  Bf1 {[%clk 0:00:17]} 42. Rd7 {[%clk 0:00:49]}  Bg2 {[%clk 0:00:17]} 43. Kg5 {[%clk 0:00:49]}  Bf3 {[%clk 0:00:17]} 44. Rf7 {[%clk 0:00:49]}  Bd5 {[%clk 0:00:16]} 45. Rf5 {[%clk 0:00:50]}  Bc6 {[%clk 0:00:16]} 46. Rc5 {[%clk 0:00:47]}  Bf3 {[%clk 0:00:15]} 47. Rc3 {[%clk 0:00:47]}  Be4 {[%clk 0:00:15]} 48. Kxh5 {[%clk 0:00:47]}  Bd5 {[%clk 0:00:15]} 49. Kg5 {[%clk 0:00:47]}  Bf3 {[%clk 0:00:14]} 50. h5 {[%clk 0:00:47]}  Be4 {[%clk 0:00:14]} 51. Rc7 {[%clk 0:00:47]}  Bd5 {[%clk 0:00:14]} 52. h6 {[%clk 0:00:46]} 1-0


[Site "https://www.chess.com"]

[Event "Titled Tuesday Blitz December 7 2021"]
[White "Perez Gormaz, Matias"]
[Black "Zherebtsova, Alexandra"]
[WhiteFideId "3406342"]
[BlackFideId "24129518"]
[WhiteElo "2352"]
[BlackElo "2025"]
[Result "1-0"]
[Round "02"]
[TimeControl "180+1"]
[Date "2021.12.07"]
[WhiteClock "0:01:31"]
[BlackClock "0:01:34"]

1. e4 {[%clk 0:03:00]}  e5 {[%clk 0:02:58]} 2. Nf3 {[%clk 0:03:00]}  Nc6 {[%clk 0:02:58]} 3. Bb5 {[%clk 0:03:01]}  a6 {[%clk 0:02:58]} 4. Ba4 {[%clk 0:03:01]}  Nf6 {[%clk 0:02:58]} 5. d3 {[%clk 0:03:02]}  d6 {[%clk 0:02:57]} 6. c3 {[%clk 0:03:01]}  g6 {[%clk 0:02:56]} 7. O-O {[%clk 0:03:01]}  Bg7 {[%clk 0:02:56]} 8. Re1 {[%clk 0:03:02]}  O-O {[%clk 0:02:56]} 9. h3 {[%clk 0:03:03]}  b5 {[%clk 0:02:51]} 10. Bc2 {[%clk 0:03:01]}  Bb7 {[%clk 0:02:51]} 11. a4 {[%clk 0:03:00]}  Re8 {[%clk 0:02:44]} 12. Be3 {[%clk 0:02:53]}  b4 {[%clk 0:02:37]} 13. a5 {[%clk 0:02:51]}  bxc3 {[%clk 0:02:25]} 14. bxc3 {[%clk 0:02:52]}  Ne7 {[%clk 0:02:25]} 15. Nbd2 {[%clk 0:02:45]}  Nd7 {[%clk 0:02:21]} 16. Ba4 {[%clk 0:02:36]}  f5 {[%clk 0:02:08]} 17. Qb3+ {[%clk 0:02:35]}  Kh8 {[%clk 0:02:03]} 18. Ng5 {[%clk 0:02:31]}  Rf8 {[%clk 0:01:53]} 19. Qxb7 {[%clk 0:02:21]}  f4 {[%clk 0:01:40]} 20. Ne6 {[%clk 0:02:12]}  Qb8 {[%clk 0:01:40]} 21. Qxb8 {[%clk 0:02:00]}  Nxb8 {[%clk 0:01:39]} 22. Nxf8 {[%clk 0:01:39]}  fxe3 {[%clk 0:01:39]} 23. Nxg6+ {[%clk 0:01:37]}  hxg6 {[%clk 0:01:35]} 24. fxe3 {[%clk 0:01:38]}  Nbc6 {[%clk 0:01:35]} 25. Nc4 {[%clk 0:01:35]}  Bh6 {[%clk 0:01:34]} 26. Rf1 {[%clk 0:01:32]}  Kg7 {[%clk 0:01:34]} 27. Rab1 {[%clk 0:01:31]} 1-0


[Site "https://www.chess.com"]

[Event "Titled Tuesday Blitz December 7 2021"]
[White "Pham, Le Thao Nguyen"]
[Black "Krivonosov, Oleg"]
[WhiteFideId "12401226"]
[BlackFideId "11600349"]
[WhiteElo "2286"]
[BlackElo "2469"]
[Result "0-1"]
[Round "02"]
[TimeControl "180+1"]
[Date "2021.12.07"]
[WhiteClock "0:00:04"]
[BlackClock "0:00:38"]

1. d4 {[%clk 0:02:59]}  d5 {[%clk 0:02:57]} 2. Nf3 {[%clk 0:02:57]}  Nf6 {[%clk 0:02:56]} 3. Bf4 {[%clk 0:02:57]}  e6 {[%clk 0:02:56]} 4. e3 {[%clk 0:02:58]}  c5 {[%clk 0:02:55]} 5. c3 {[%clk 0:02:58]}  Nc6 {[%clk 0:02:54]} 6. Nbd2 {[%clk 0:02:57]}  Bd6 {[%clk 0:02:54]} 7. Bg3 {[%clk 0:02:58]}  O-O {[%clk 0:02:53]} 8. Bd3 {[%clk 0:02:59]}  Qe7 {[%clk 0:02:54]} 9. Ne5 {[%clk 0:02:58]}  Nd7 {[%clk 0:02:53]} 10. Nxd7 {[%clk 0:02:56]}  Qxd7 {[%clk 0:02:53]} 11. Bxd6 {[%clk 0:02:51]}  Qxd6 {[%clk 0:02:54]} 12. f4 {[%clk 0:02:50]}  cxd4 {[%clk 0:02:50]} 13. cxd4 {[%clk 0:02:51]}  Bd7 {[%clk 0:02:46]} 14. O-O {[%clk 0:02:50]}  Nb4 {[%clk 0:02:36]} 15. Nf3 {[%clk 0:02:45]}  Nxd3 {[%clk 0:02:32]} 16. Qxd3 {[%clk 0:02:46]}  f6 {[%clk 0:02:31]} 17. Rfc1 {[%clk 0:02:45]}  Rfc8 {[%clk 0:02:29]} 18. a3 {[%clk 0:02:40]}  Qb6 {[%clk 0:02:27]} 19. Qd2 {[%clk 0:02:37]}  a5 {[%clk 0:02:21]} 20. Ne1 {[%clk 0:02:19]}  Bb5 {[%clk 0:02:18]} 21. Rxc8+ {[%clk 0:02:18]}  Rxc8 {[%clk 0:02:17]} 22. Rc1 {[%clk 0:02:19]}  Rc7 {[%clk 0:02:08]} 23. Rc3 {[%clk 0:02:06]}  Rc6 {[%clk 0:02:01]} 24. Qc2 {[%clk 0:01:58]}  Qc7 {[%clk 0:01:58]} 25. Rxc6 {[%clk 0:01:48]}  Qxc6 {[%clk 0:01:59]} 26. Qxc6 {[%clk 0:01:47]}  Bxc6 {[%clk 0:02:00]} 27. Kf2 {[%clk 0:01:41]}  b6 {[%clk 0:01:59]} 28. Ke2 {[%clk 0:01:41]}  Bb5+ {[%clk 0:01:58]} 29. Kd2 {[%clk 0:01:41]}  Kf7 {[%clk 0:01:59]} 30. Kc3 {[%clk 0:01:26]}  Kg6 {[%clk 0:01:57]} 31. Nf3 {[%clk 0:01:22]}  Kf5 {[%clk 0:01:53]} 32. Kd2 {[%clk 0:01:15]}  Ke4 {[%clk 0:01:38]} 33. Ne1 {[%clk 0:01:04]}  Bf1 {[%clk 0:01:37]} 34. b4 {[%clk 0:00:59]}  axb4 {[%clk 0:01:36]} 35. axb4 {[%clk 0:01:00]}  h5 {[%clk 0:01:33]} 36. g3 {[%clk 0:00:52]}  g5 {[%clk 0:01:25]} 37. fxg5 {[%clk 0:00:24]}  fxg5 {[%clk 0:01:26]} 38. h4 {[%clk 0:00:24]}  g4 {[%clk 0:00:54]} 39. b5 {[%clk 0:00:13]}  Bxb5 {[%clk 0:00:54]} 40. Ng2 {[%clk 0:00:13]}  Kf3 {[%clk 0:00:54]} 41. Nf4 {[%clk 0:00:13]}  Kxg3 {[%clk 0:00:54]} 42. Nxh5+ {[%clk 0:00:13]}  Kxh4 {[%clk 0:00:53]} 43. Nf4 {[%clk 0:00:12]}  g3 {[%clk 0:00:48]} 44. Ke1 {[%clk 0:00:12]}  Kg4 {[%clk 0:00:44]} 45. Nxe6 {[%clk 0:00:06]}  Kf3 {[%clk 0:00:42]} 46. Nf4 {[%clk 0:00:04]}  Bc4 {[%clk 0:00:38]} 0-1


[Site "https://www.chess.com"]